Cogmind - Beta 13 X1 @@@ ROGUE MODE // 2023.07.10 @ 21:05:12 Player: Momo Result: Destroyed by P-60 Hacker with Shock Rifle Performance ------------- Evolutions (0) 0 Regions Visited (4) 800 Robots Destroyed (30) 150 Value Destroyed (783) 783 Prototype IDs (0) 0 Alien Tech Used (0) 0 Bonus (26) 26 TOTAL SCORE: 1759 Bonus ------- High Alert Combat Kills 19 Follower Combat Kills 7 Cogmind --------- Core Integrity 0/250 Matter 300/300 Energy 160/160 System Corruption 2% Temperature Cool (0) Movement Rolling (140) Ox4 Location -7/Recycling Parts ------- > --- POWER (1) -------- Light Nuclear Core > --- PROPULSION (2) --- Wheel Wheel > --- UTILITY (2) ------ Huge Storage Unit Structural Scanner > --- WEAPON (2) ------- Barrage Gun Makeshift Axe > --- INVENTORY (25) --- Micro Nuclear Core Medium Treads Aluminum Leg Improved Carbon-fiber Leg Compact Wheel Flight Unit Scrap Engine EM Pulse Gun EM Pulse Gun EM Pulse Gun EM Pulse Gun Riot Gun Medium Laser Small Laser Small Laser Subdweller Laser Pulse Rifle Assault Rifle Light Assault Rifle Battle Rifle Battle Cannon Flak Cannon Proton Missile Launcher Rocket Launcher Peak State ------------ > --- POWER ------------ Light Nuclear Core > --- PROPULSION ------- Wheel Wheel > --- UTILITY ---------- Huge Storage Unit Structural Scanner > --- WEAPON ----------- Barrage Gun Makeshift Axe > --- INVENTORY -------- Micro Nuclear Core Medium Treads Aluminum Leg Improved Carbon-fiber Leg Compact Wheel Flight Unit Scrap Engine EM Pulse Gun EM Pulse Gun EM Pulse Gun EM Pulse Gun Riot Gun Medium Laser Small Laser Small Laser Subdweller Laser Pulse Rifle Assault Rifle Light Assault Rifle Battle Rifle Battle Cannon Flak Cannon Proton Missile Launcher Rocket Launcher [Rating: 20] Favorites ----------- Power Ion Engine Engine Ion Engine Power Core Light Nuclear Core Propulsion Wheel Treads Light Treads Wheel Wheel Utility Structural Scanner Device Structural Scanner Storage Huge Storage Unit Weapon Mini Grenade Launcher Energy Gun EM Pulse Gun Ballistic Gun Assault Rifle Launcher Mini Grenade Launcher Impact Weapon Hammer Slashing Weapon Makeshift Axe Build | -11 -10 -10 -10 -7 ------- Run | Jun Mat Min Sub Rec Slots Evolved . | . . . . . Power . | . . . . . Propulsion . | . . . . . Utility . | . . . . . Weapon . | . . . . . Parts Attached 22 | 4 8 2 8 . Power 3 | . 1 1 1 . Engine 2 | . 1 1 . . Core 1 | . . . 1 . Reactor . | . . . . . Propulsion 4 | 2 2 . . . Treads 2 | 2 . . . . Leg . | . . . . . Wheel 2 | . 2 . . . Hover . | . . . . . Flight . | . . . . . Utility 5 | . 4 1 . . Device 1 | . 1 . . . Storage 4 | . 3 1 . . Processor . | . . . . . Hackware . | . . . . . Protection . | . . . . . Artifact . | . . . . . Weapon 10 | 2 1 . 7 . Energy Gun 3 | 1 . . 2 . Energy Cannon . | . . . . . Ballistic Gun 2 | 1 . . 1 . Ballistic Cannon . | . . . . . Launcher 3 | . 1 . 2 . Special Weapon . | . . . . . Impact Weapon 1 | . . . 1 . Slashing Weapon 1 | . . . 1 . Piercing Weapon . | . . . . . Special Melee Weapon . | . . . . . Unidentified Prototypes . | . . . . . Parts Lost 1 | . . . 1 . Power 1 | . . . 1 . Propulsion . | . . . . . Utility . | . . . . . Weapon . | . . . . . Highest Loss Streak 1 | . . . 1 . To Critical Strikes . | . . . . . Average Slot Usage (%) 96 | . 89 100 99 100 Engine 8 | . 4 14 11 . Core 1 | . . . 2 14 Wheel 27 | . 27 28 28 28 Device 13 | . 13 14 14 14 Storage 13 | . 13 14 14 14 Energy Gun 3 | . 4 . 7 . Ballistic Gun 11 | . 14 14 4 14 Launcher 10 | . 9 14 10 . Slashing Weapon 1 | . . . 2 14 Naked Turns . | . . . . . Heaviest Build 92 | 3 49 89 92 92 Greatest Support 20 | 20 20 20 20 20 Greatest Overweight (x) 4 | . 2 4 4 4 Average Overweight (x) 2 | . 1 3 4 4 Largest Inventory Capacity 25 | 5 20 25 25 25 Average Capacity 21 | 5 17 23 25 25 Most Carried 25 | 3 16 23 25 25 Average Carried 18 | 1 12 21 23 24 Final Capacity 25 | 5 20 25 25 25 Final Carried 25 | 3 16 23 25 25 Class Distribution -------------------- 100% | Mutant Dominant Class ---------------- Mutant | -10/Materials Mutant | -10/Mines Mutant | -10/Subcaves Mutant | -7/Recycling Resources | -11 -10 -10 -10 -7 ----------- Run | Jun Mat Min Sub Rec Matter Collected 853 | 213 264 70 306 . Remotely . | . . . . . Salvage Created 469 | . 220 108 141 . Parts 41 | . 25 6 10 . Haulers Intercepted . | . . . . . Recyclers Shooed . | . . . . . Parts Field Recycled . | . . . . . Retrieved Matter . | . . . . . Parts Self-Destructed 8 | . . . 8 . Prevented . | . . . . . Kills | -11 -10 -10 -10 -7 ------- Run | Jun Mat Min Sub Rec Combat Hostiles Destroyed 18 | . 9 4 5 . Guns 3 | . . . 3 . AOE 15 | . 9 4 2 . Classes Destroyed 12 | . 8 1 3 . Worker 2 | . 2 . . . Builder 2 | . 2 . . . Tunneler 1 | . . 1 . . Recycler 1 | . 1 . . . Mechanic 1 | . 1 . . . Operator 1 | . 1 . . . Turret 2 | . . . 2 . Watcher 2 | . 2 . . . Swarmer 6 | . 3 . 3 . Grunt 10 | . 6 4 . . Sentry 1 | . . . 1 . Subdweller 1 | . . . 1 . Best Kill Streak 8 | . 8 3 4 . Combat Bots Only 5 | . 5 2 2 . Max Kills in Single Turn 3 | . 3 1 2 . Gunslinging . | . . . . . Exploded 2 | . 2 1 2 . Melee . | . . . . . Uniques/NPCs Destroyed . | . . . . . Combat | -11 -10 -10 -10 -7 -------- Run | Jun Mat Min Sub Rec Damage Taken 656 | . 153 123 320 60 Core 254 | . 59 15 150 30 Absorbed by Shields . | . . . . . Core Remaining (%) 100 | 100 . . . . Volleys Fired 42 | . 15 9 18 . Largest 2 | . 1 1 2 . Hottest 60 | . 30 30 60 . Shots Fired 44 | . 15 9 20 . Gun 17 | . 1 . 16 . Cannon . | . . . . . Launcher 27 | . 14 9 4 . Special . | . . . . . Kinetic 6 | . 1 . 5 . Thermal . | . . . . . Explosive 27 | . 14 9 4 . Electromagnetic 11 | . . . 11 . Robot Hit Streak 5 | . 3 3 5 . Robot Miss Streak 2 | . 2 1 1 . Penetration Max . | . . . . . Secondary Targets . | . . . . . Shots Hit Robots 39 | . 7 7 24 1 Core Hits 53 | . 25 9 19 . Critical Kills . | . . . . . Critical Parts Destroyed 1 | . . . 1 . Critical Strikes 2 | . . . 2 . Smash 2 | . . . 2 . Melee Attacks 16 | . . . 14 2 Impact 14 | . . . 14 . Slashing 2 | . . . . 2 Piercing . | . . . . . Sneak Attacks . | . . . . . Combat Hostiles . | . . . . . Follow-up Attacks . | . . . . . Damage Inflicted 2475 | . 1402 440 602 31 Guns 177 | . 10 . 167 . Cannons . | . . . . . Explosions 2054 | . 1387 440 227 . Melee 239 | . . . 208 31 Ramming 5 | . 5 . . . Kinetic 73 | . 10 . 63 . Thermal . | . . . . . Explosive 2054 | . 1387 440 227 . Electromagnetic 104 | . . . 104 . Impact 208 | . . . 208 . Slashing 31 | . . . . 31 Piercing . | . . . . . Highest Corruption 2 | . . . . 2 Average Corruption 1 | . . . . 1 Corruption Purged . | . . . . . Corruption Blocked . | . . . . . Overload Shots . | . . . . . Overflow Damage 141 | . 59 40 28 14 Projectiles . | . . . . . Explosions 99 | . 59 40 . . Melee 42 | . . . 28 14 Knockbacks 1 | . . . 1 . Impact 1 | . . . 1 . Kinetic . | . . . . . Secondary . | . . . . . Self-Inflicted Damage 79 | . 62 17 . . Shots 5 | . 3 2 . . Rammed 1 | . 1 . . . Targets Rammed 1 | . 1 . . . Kicked . | . . . . . Crushed . | . . . . . Highest Temperature 4 | . 1 4 . . Average Temperature 3 | . 1 3 . . Received Heat Transfer 108 | . 33 60 15 . Siege Activations . | . . . . . Robots Corrupted . | . . . . . Combat Hostiles . | . . . . . Parts Fried . | . . . . . Impact Corruptions 1 | . . . 1 . Robots Melted . | . . . . . Combat Hostiles . | . . . . . Parts Melted . | . . . . . Heat Transferred . | . . . . . Parts Sabotaged . | . . . . . Parts Stolen . | . . . . . Parts Stripped . | . . . . . Power Chain Reactions . | . . . . . Missiles Intercepted . | . . . . . Alert | -11 -10 -10 -10 -7 ------- Run | Jun Mat Min Sub Rec Peak Influence 453 | . 453 334 . 163 Initial 163 | . . 141 . 163 Average 212 | . 222 227 . 163 Maximum Alert Level 2 | . 2 1 . . Low Security (%) 44 | 100 36 35 . 100 Level 1 50 | . 52 64 . . Level 2 5 | . 11 . . . Level 3 . | . . . . . Level 4 . | . . . . . Level 5 . | . . . . . High Security . | . . . . . Max Security . | . . . . . Squads Dispatched . | . . . . . Investigation . | . . . . . Extermination . | . . . . . Reinforcement . | . . . . . Assault . | . . . . . Garrison . | . . . . . Intercept . | . . . . . Searches Triggered . | . . . . . Construction Impeded . | . . . . . Haulers Reinforced . | . . . . . Active Scanning Responses . | . . . . . Cargo Convoy Interrupts . | . . . . . Stealth | -11 -10 -10 -10 -7 --------- Run | Jun Mat Min Sub Rec Distress Signals 1 | . 1 . . . Communications Jammed . | . . . . . Distress Signals . | . . . . . Times Spotted 44 | . 17 4 21 2 Peak Tracking Total 6 | . 6 2 3 2 Tactical Retreats 6 | . 2 . 4 . Traps | -11 -10 -10 -10 -7 ------- Run | Jun Mat Min Sub Rec Traps Triggered . | . . . . . Indirectly . | . . . . . Trap Hack Attempts . | . . . . . Triggered . | . . . . . Disarmed . | . . . . . Reprogrammed . | . . . . . Reused . | . . . . . Traps Extracted . | . . . . . Installed . | . . . . . Triggered . | . . . . . Machines | -11 -10 -10 -10 -7 ---------- Run | Jun Mat Min Sub Rec Machines Disabled 13 | . 7 3 3 . Max in Single Turn 3 | . 2 2 3 . Machines Repaired . | . . . . . Machines Sabotaged . | . . . . . Overloaded Fab Kills . | . . . . . Hacking | -11 -10 -10 -10 -7 --------- Run | Jun Mat Min Sub Rec Machines Accessed 3 | . 2 . 1 . Terminals 2 | . 2 . . . Fabricators . | . . . . . Repair Stations . | . . . . . Recycling Units . | . . . . . Scanalyzers . | . . . . . Garrison Access . | . . . . . Total Hacks 7 | . 5 . 2 . Successful 2 | . . . 2 . Failed 5 | . 5 . . . Catastrophic 1 | . 1 . . . Database Lockouts . | . . . . . Manual 5 | . 5 . . . Terminals 5 | . 5 . . . Fabricators . | . . . . . Repair Stations . | . . . . . Recycling Units . | . . . . . Scanalyzers . | . . . . . Garrison Access . | . . . . . Terminal Hacks 2 | . . . 2 . Record 2 | . . . 2 . Fabricator Hacks . | . . . . . Repair Station Hacks . | . . . . . Recycling Unit Hacks . | . . . . . Scanalyzer . | . . . . . Garrison Access Hacks . | . . . . . Unauthorized Hacks . | . . . . . Terminals . | . . . . . Fabricators . | . . . . . Repair Stations . | . . . . . Recycling Units . | . . . . . Scanalyzers . | . . . . . Garrison Access . | . . . . . Data Cores Recovered 1 | . 1 . . . Used . | . . . . . Hacking Detections 2 | . 2 . . . Full Trace Events . | . . . . . Feedback Events . | . . . . . Feedback Blocked . | . . . . . Robot Schematics Acquired . | . . . . . Robots Built . | . . . . . Authchips . | . . . . . Time . | . . . . . Total Robot Build Rating . | . . . . . Part Schematics Acquired . | . . . . . Parts Built . | . . . . . Authchips . | . . . . . Time . | . . . . . Total Part Build Rating . | . . . . . Parts Repaired . | . . . . . Time . | . . . . . Parts Recycled . | . . . . . Recycled Matter . | . . . . . Retrieved Matter . | . . . . . Retrieved Components . | . . . . . Parts Scanalyzed . | . . . . . Part Schematics Acquired . | . . . . . Parts Damaged . | . . . . . Bothacking | -11 -10 -10 -10 -7 ------------ Run | Jun Mat Min Sub Rec Used RIF Installer . | . . . . . Robots Hacked . | . . . . . Non-combat . | . . . . . Combat . | . . . . . Robot Hacks Applied . | . . . . . Relay Couplers Released . | . . . . . Fabnet Peak Effective % . | . . . . . Robots Rewired . | . . . . . Allies Hacked . | . . . . . Hacks Repelled . | . . . . . Allies | -11 -10 -10 -10 -7 -------- Run | Jun Mat Min Sub Rec Total Allies 2 | . . 2 . . Largest Group 2 | . . 2 2 . Highest-Rated Group 45 | . . 45 45 . Highest-Rated Ally 31 | . . 31 31 . Total Orders . | . . . . . Ally Attacks 10 | . . . 10 . Total Damage 123 | . . . 123 . Kills 1 | . . . 1 . Allies Corrupted . | . . . . . Allies Melted . | . . . . . Intel | -11 -10 -10 -10 -7 ------- Run | Jun Mat Min Sub Rec Robot Analysis Total . | . . . . . Derelict Logs Recovered 3 | . . 2 1 . Drone Launches . | . . . . . Drone Recoveries . | . . . . . Exploration | -11 -10 -10 -10 -7 ------------- Run | Jun Mat Min Sub Rec Turns Passed 1931 | 38 661 596 485 151 Spaces Moved 1422 | 49 566 438 272 97 Core 62 | 45 17 . . . Treads 4 | 4 . . . . Legs . | . . . . . Wheels 1356 | . 549 438 272 97 Hover . | . . . . . Flight . | . . . . . Fastest Speed 50 | 50 50 110 140 140 Average Speed 118 | 58 102 128 140 140 Slowest Speed 160 | 160 110 140 140 140 Overloaded Moves . | . . . . . Propulsion Burnouts . | . . . . . Robots Hopped . | . . . . . Cave-ins Triggered . | . . . . . Exploration Rate (%) 46 | 4 89 97 24 19 Regions Visited 4 Branch Regions 3 Pre-discovered Areas . | . . . . . Known Exits Taken . | . . . . . Unknown Exits Taken 4 | 1 1 1 1 . Scrap Searched 7 | . . 1 6 . Spaces Dug 7 | . 7 . . . Terrain Destroyed 148 | . 99 34 15 . Melee . | . . . . . Projectile . | . . . . . AOE 148 | . 99 34 15 . Terrain Rammed . | . . . . . Walls Destroyed . | . . . . . Machines Disabled . | . . . . . Actions | -11 -10 -10 -10 -7 --------- Run | Jun Mat Min Sub Rec Total 1595 | 55 633 463 330 114 Wait 40 | . 23 7 10 . Move 1418 | 48 565 437 271 97 Hop . | . . . . . Pick Up 39 | 3 17 7 5 7 Fast Attach 8 | 4 2 . 2 . Attach 3 | . 3 . . . Detach . | . . . . . Swap 11 | . 3 2 6 . Drop 17 | . 4 1 4 8 Fire 42 | . 15 9 18 . Melee 16 | . . . 14 2 Ram 1 | . 1 . . . Kick . | . . . . . Crush . | . . . . . Escape Stasis . | . . . . . Rewire . | . . . . . Trap . | . . . . . Miscellaneous . | . . . . . Route ------- -11/Junkyard -10/Materials (discovered 4 exits: *Mat x3 / [*Min]) -10/Mines (discovered 3 exits: *Mat x2 / *Sub) -10/Subcaves -7/Recycling History --------- Turn | Location | Event 5 | -11/Junkyard | Discovered new exit (range 16) 39 | -11/Junkyard | Entered Materials 165 | -10/Materials | Discovered new exit (range 14) 311 | -10/Materials | Build established: Mutant 345 | -10/Materials | Discovered new exit (range 15) 437 | -10/Materials | Discovered new exit (range 8) 664 | -10/Materials | Discovered new exit (range 11) 700 | -10/Materials | Entered Mines 747 | -10/Mines | Identified exit to Materials 1015 | -10/Mines | Received a Rocket Launcher from a helpful Derelict 1026 | -10/Mines | Discovered new exit (range 14) 1063 | -10/Mines | Discovered exit to Materials (range 5) 1296 | -10/Mines | Entered Subcaves 1296 | -10/Subcaves | Accompanied by 2 allies 1301 | -10/Subcaves | Led the pair of lost Derelicts to an unsafe place 1383 | -10/Subcaves | Discovered new exit (range 12) 1418 | -10/Subcaves | Learned Materials terminal intel 1458 | -10/Subcaves | Visited Clippyterm 1611 | -10/Subcaves | Disturbed a concealed Subdweller 1644 | -10/Subcaves | Disturbed a concealed Subdweller 1658 | -10/Subcaves | Core integrity fell below 50% 1700 | -10/Subcaves | Core integrity fell below 20% 1781 | -10/Subcaves | Entered Recycling 1785 | -7/Recycling | Found Scrap Engine 1932 | -7/Recycling | Destroyed by P-60 Hacker with Shock Rifle Last Messages --------------- 01848_ Acquired Med. Treads. 01852_ Dropped Aluminum Leg. 01853_ Acquired Imp. Carbon-fiber Leg. 01868_ Dropped Mni. Grenade Launcher. 01868_ Acquired Proton Missile Launcher. 01870_ R-06 Scavenger collects Mni. Grenade Launcher. 01872_ Dropped EM Pulse Gun. 01873_ Acquired Pulse Rifle. 01873_ R-06 Scavenger collects EM Pulse Gun. 01878_ R-06 Scavenger collects Aluminum Leg. 01880_ Dropped EM Pulse Gun. 01881_ Acquired Broken Flak Cannon. 01882_ Dropped Structural Scanner. 01883_ R-06 Scavenger collects Lgt. Treads. 01885_ Acquired Mic. Nuclear Core. 01899_ R-06 Scavenger inserts Mni. Grenade Launcher into recycling unit. 01902_ R-06 Scavenger inserts EM Pulse Gun into recycling unit. 01905_ I-36 Angel springs to life. 01905_ R-06 Scavenger inserts Aluminum Leg into recycling unit. 01930_ Destroyed Shock Rifle. Map ----- +----------------------------------------------------+ | | | | | | | | | | | | | | | | | | | | | | | | | | | | | | | | | | | | | | | | | | | ?????????????????????????####################????? | | ?????????????????????????#########"""########????? | | ???????????????############!!!####"Y"#"""""####### | | ???????????????############! !####" "#""T""####### | | ????????? @p | | ???????????????############+##+## #### | | ??????????????? ### % /% *# """"" #### | | ??????????????????## [ + """"" ##?# | | ??????????????????## # """"" #### | | ??????????????????## ! # #### | | ??????????????????## ! + + | | ??????????????????## =#### ####### / | | ??????????????????## % ##"" #######! | | ??????????????????## ! ##"Y ##???##[ | | ??????????????????## ] ##"" ##???## | | ??????????????????## ! #### ""???## | | ??????????????????## #### Y"???## | | ??????????????????## #### ""#??## ! | | ??????????????????????+###+######### ###??## | | ?????????????????????? ? ###??##### | | ????????????????????????????????????### ##???##### | | ????????????????????????????????????### ##???????? | | ?????????????????????????????????????????????????? | | ?????????????????????????????????????????????????? | | ?????????????????????????????????????????????????? | | ?????????????????????????????????????????????????? | | ?????????????????????????????????????????????????? | | ?????????????????????????????????????????????????? | | ?????????????????????????????????????????????????? | +----------------------------------------------------+ Best States ------------- Heat Dissipation 25 Energy Generation 14 Energy Capacity 250 Matter Stores 300 Matter Capacity 300 Sight Range 16 Terrain Scan Density 10 Evasion (%) 50 Recoil Reduction 1 Item Schematics ----------------- None Robot Schematics ------------------ None Fabricated ------------ Nothing Alien Tech Used ----------------- None Achievements -------------- None Challenges ------------ None Game ------ Seed ResetFieldInsulator Manual? 0 Play Time 00:15:54 Cumulative 424.8 hours Start 2023.07.10 @ 20:50:26 End 2023.07.10 @ 21:05:12 Sessions 1 Manual Loads 0 Difficulty Rogue Special Mode None Game No. 205 Rogue 201 Adventurer 0 Explorer 4 Win Type - Total 24 Types 8/1/2/5/1/2/3/1/1 Lore% 82 Gallery% 86 Achievement% 80 Wizard Run 0 Options --------- ASCII 0 Keyboard 0 Movement Mouse Keybinds 0 Fullscreen 1 Font 18/SmallcapsGlow Map View 76x50 Tactical HUD 1 Map Filters NONE Filters NONE Steam 1 RUN: 84a64a9f-a380-463c-975e-6e2bc89d6c3c